{"text_format":"1","workbook":"xlsx","n_sheets":1,"sheets":["Sheet1"],"not_rendered":{"charts":0,"images":1,"macros":0,"external_links":0,"defined_names":1,"comments":0,"pivot_tables":0},"unopened":[],"bounds":{"document_bytes":16777216,"sheet_cells":100000,"rows_first":2000,"rows_last":500,"rows_between":2000,"halvings":0,"cell_chars":16384,"cell_head_chars":4096},"cells_cut":0,"cells_raw":0,"read":"whole","date_system":"1900"}

{"sheet":"Sheet1","index":0,"n_rows":120,"n_cols":6,"rows_kept":120,"cut":false,"hidden":false,"merged":[]}
["d:\\temp\\*.xlsm",{"$f":"IFERROR(INDEX(MyFiles,ROW()),\"-----\")","v":"Auditorias.xlsm"}]
[null,{"$f":"IFERROR(INDEX(MyFiles,ROW()),\"-----\")","v":"Automatically_Add_Items_to_Data_Validation.List.xlsm"}]
[null,{"$f":"IFERROR(INDEX(MyFiles,ROW()),\"-----\")","v":"Book1.xlsm"}]
[null,{"$f":"IFERROR(INDEX(MyFiles,ROW()),\"-----\")","v":"Book2.xlsm"}]
[null,{"$f":"IFERROR(INDEX(MyFiles,ROW()),\"-----\")","v":"Book3 - Copy.xlsm"}]
[null,{"$f":"IFERROR(INDEX(MyFiles,ROW()),\"-----\")","v":"Book3.xlsm"}]
[null,{"$f":"IFERROR(INDEX(MyFiles,ROW()),\"-----\")","v":"Change_the_Color_of_Words_In_Text.xlsm"}]
[null,{"$f":"IFERROR(INDEX(MyFiles,ROW()),\"-----\")","v":"Coffee_Chain_Data 2_SEF.xlsm"}]
[null,{"$f":"IFERROR(INDEX(MyFiles,ROW()),\"-----\")","v":"ControlloCalendario-3.xlsm"}]
[null,{"$f":"IFERROR(INDEX(MyFiles,ROW()),\"-----\")","v":"copy image to powerpoint per vba.xlsx2.xlsm"},null,null,null,"Other Resources"]
[null,{"$f":"IFERROR(INDEX(MyFiles,ROW()),\"-----\")","v":"Copy of Contractor Timesheet.xlsm"},null,null,null,"Blog"]
[null,{"$f":"IFERROR(INDEX(MyFiles,ROW()),\"-----\")","v":"Copy of Excel-Forms-Insert-Update-Delete.xlsm"},null,null,null,"Free Training"]
[null,{"$f":"IFERROR(INDEX(MyFiles,ROW()),\"-----\")","v":"Copy of Spegnere-e-Sospendere-il-PC.xlsm"},null,null,null,"Excel Forum"]
[null,{"$f":"IFERROR(INDEX(MyFiles,ROW()),\"-----\")","v":"copy.pic.to.xlsm"}]
[null,{"$f":"IFERROR(INDEX(MyFiles,ROW()),\"-----\")","v":"Create-Hyperlinked-List-of-Files-in-Subfolders-Across-Row.xlsm"},null,null,null,"Our Courses"]
[null,{"$f":"IFERROR(INDEX(MyFiles,ROW()),\"-----\")","v":"Create-Hyperlinked-List-of-Files-in-Subfolders-In-One-Column.xlsm"},null,null,null,"Power BI"]
[null,{"$f":"IFERROR(INDEX(MyFiles,ROW()),\"-----\")","v":"Create-Hyperlinked-List-of-Files-in-Subfolders.xlsm"},null,null,null,"Excel Dashboards"]
[null,{"$f":"IFERROR(INDEX(MyFiles,ROW()),\"-----\")","v":"Create.Hyperlinked.List.of.Files.In.Folder.xlsm"},null,null,null,"Power Query"]
[null,{"$f":"IFERROR(INDEX(MyFiles,ROW()),\"-----\")","v":"Create_Barcodes_in_Excel.xlsm"},null,null,null,"Power Pivot"]
[null,{"$f":"IFERROR(INDEX(MyFiles,ROW()),\"-----\")","v":"Debugging.Practice.xlsm"},null,null,null,"Pivot Tables"]
[null,{"$f":"IFERROR(INDEX(MyFiles,ROW()),\"-----\")","v":"Debugging_VBA_Code.xlsm"},null,null,null,"Excel Expert"]
[null,{"$f":"IFERROR(INDEX(MyFiles,ROW()),\"-----\")","v":"email_pdf.xlsm"},null,null,null,"Excel for Decision Making"]
[null,{"$f":"IFERROR(INDEX(MyFiles,ROW()),\"-----\")","v":"Error_Handling_in_VBA.xlsm"},null,null,null,"Excel for Finance"]
[null,{"$f":"IFERROR(INDEX(MyFiles,ROW()),\"-----\")","v":"Excel VBA String Functions.xlsm"},null,null,null,"Excel for Customer Service Professionals"]
[null,{"$f":"IFERROR(INDEX(MyFiles,ROW()),\"-----\")","v":"Excel-Date-Picker.xlsm"}]
[null,{"$f":"IFERROR(INDEX(MyFiles,ROW()),\"-----\")","v":"Excel-Date-Picker2.xlsm"}]
[null,{"$f":"IFERROR(INDEX(MyFiles,ROW()),\"-----\")","v":"Excel-Forms-Add-Data-to-Combo-Boxes.xlsm"}]
[null,{"$f":"IFERROR(INDEX(MyFiles,ROW()),\"-----\")","v":"Excel-Forms-Insert-Update-Delete.xlsm"}]
[null,{"$f":"IFERROR(INDEX(MyFiles,ROW()),\"-----\")","v":"Excel.Forms.xlsm"}]
[null,{"$f":"IFERROR(INDEX(MyFiles,ROW()),\"-----\")","v":"Expenses 2016 - 2 Calendars.xlsm"}]
[null,{"$f":"IFERROR(INDEX(MyFiles,ROW()),\"-----\")","v":"FILES_XLM.xlsm"}]
[null,{"$f":"IFERROR(INDEX(MyFiles,ROW()),\"-----\")","v":"Find.Missing.Numbers.In.Sequence.xlsm"}]
[null,{"$f":"IFERROR(INDEX(MyFiles,ROW()),\"-----\")","v":"Find.vs.Collection.Loop.xlsm"}]
[null,{"$f":"IFERROR(INDEX(MyFiles,ROW()),\"-----\")","v":"Finding_File_MetaData_Using_FileSystemObject.xlsm"}]
[null,{"$f":"IFERROR(INDEX(MyFiles,ROW()),\"-----\")","v":"force-nav.xlsm"}]
[null,{"$f":"IFERROR(INDEX(MyFiles,ROW()),\"-----\")","v":"Get_started_with_vba-3_easy_examples.xlsm"}]
[null,{"$f":"IFERROR(INDEX(MyFiles,ROW()),\"-----\")","v":"highlight-text-numbers-dates-and-formulas-on-a-sheet_.xlsm"}]
[null,{"$f":"IFERROR(INDEX(MyFiles,ROW()),\"-----\")","v":"Highlight.Selected.Cells.and.Preserve.Cell.Formatting.With.Lines.xlsm"}]
[null,{"$f":"IFERROR(INDEX(MyFiles,ROW()),\"-----\")","v":"Highlight.Selected.Cells.and.Preserve.Cell.Formatting.xlsm"}]
[null,{"$f":"IFERROR(INDEX(MyFiles,ROW()),\"-----\")","v":"Highlight.Selected.Cells.and.Preserve.Cell.Formatting2.xlsm"}]
[null,{"$f":"IFERROR(INDEX(MyFiles,ROW()),\"-----\")","v":"Learning2-List-Files-In-Folders2.xlsm"}]
[null,{"$f":"IFERROR(INDEX(MyFiles,ROW()),\"-----\")","v":"list.file.meta.data.xlsm"}]
[null,{"$f":"IFERROR(INDEX(MyFiles,ROW()),\"-----\")","v":"macro-test.xlsm"}]
[null,{"$f":"IFERROR(INDEX(MyFiles,ROW()),\"-----\")","v":"Macro.Enabled.Excel.Templates.xlsm"}]
[null,{"$f":"IFERROR(INDEX(MyFiles,ROW()),\"-----\")","v":"Maximize_Excel_Across_Multiple_Screens.xlsm"}]
[null,{"$f":"IFERROR(INDEX(MyFiles,ROW()),\"-----\")","v":"Pausing_or_Delaying_VBA_With_Wait_and_Sleep_Functions.xlsm"}]
[null,{"$f":"IFERROR(INDEX(MyFiles,ROW()),\"-----\")","v":"PE__Work-Order-Master-Form.xlsm"}]
[null,{"$f":"IFERROR(INDEX(MyFiles,ROW()),\"-----\")","v":"Progress_Bar.xlsm"}]
[null,{"$f":"IFERROR(INDEX(MyFiles,ROW()),\"-----\")","v":"Prova_Orologio_Chart.xlsm"}]
[null,{"$f":"IFERROR(INDEX(MyFiles,ROW()),\"-----\")","v":"Return-An-Array-From-A-UDF HT.xlsm"}]
[null,{"$f":"IFERROR(INDEX(MyFiles,ROW()),\"-----\")","v":"Select_Multiple_Items_in_Data_Validation_List.xlsm"}]
[null,{"$f":"IFERROR(INDEX(MyFiles,ROW()),\"-----\")","v":"test.xlsm"}]
[null,{"$f":"IFERROR(INDEX(MyFiles,ROW()),\"-----\")","v":"xxexcel_advent_calendar_2015.xlsm"}]
[null,{"$f":"IFERROR(INDEX(MyFiles,ROW()),\"-----\")","v":"-----"}]
[null,{"$f":"IFERROR(INDEX(MyFiles,ROW()),\"-----\")","v":"-----"}]
[null,{"$f":"IFERROR(INDEX(MyFiles,ROW()),\"-----\")","v":"-----"}]
[null,{"$f":"IFERROR(INDEX(MyFiles,ROW()),\"-----\")","v":"-----"}]
[null,{"$f":"IFERROR(INDEX(MyFiles,ROW()),\"-----\")","v":"-----"}]
[null,{"$f":"IFERROR(INDEX(MyFiles,ROW()),\"-----\")","v":"-----"}]
[null,{"$f":"IFERROR(INDEX(MyFiles,ROW()),\"-----\")","v":"-----"}]
[null,{"$f":"IFERROR(INDEX(MyFiles,ROW()),\"-----\")","v":"-----"}]
[null,{"$f":"IFERROR(INDEX(MyFiles,ROW()),\"-----\")","v":"-----"}]
[null,{"$f":"IFERROR(INDEX(MyFiles,ROW()),\"-----\")","v":"-----"}]
[null,{"$f":"IFERROR(INDEX(MyFiles,ROW()),\"-----\")","v":"-----"}]
[null,{"$f":"IFERROR(INDEX(MyFiles,ROW()),\"-----\")","v":"-----"}]
[null,{"$f":"IFERROR(INDEX(MyFiles,ROW()),\"-----\")","v":"-----"}]
[null,{"$f":"IFERROR(INDEX(MyFiles,ROW()),\"-----\")","v":"-----"}]
[null,{"$f":"IFERROR(INDEX(MyFiles,ROW()),\"-----\")","v":"-----"}]
[null,{"$f":"IFERROR(INDEX(MyFiles,ROW()),\"-----\")","v":"-----"}]
[null,{"$f":"IFERROR(INDEX(MyFiles,ROW()),\"-----\")","v":"-----"}]
[null,{"$f":"IFERROR(INDEX(MyFiles,ROW()),\"-----\")","v":"-----"}]
[null,{"$f":"IFERROR(INDEX(MyFiles,ROW()),\"-----\")","v":"-----"}]
[null,{"$f":"IFERROR(INDEX(MyFiles,ROW()),\"-----\")","v":"-----"}]
[null,{"$f":"IFERROR(INDEX(MyFiles,ROW()),\"-----\")","v":"-----"}]
[null,{"$f":"IFERROR(INDEX(MyFiles,ROW()),\"-----\")","v":"-----"}]
[null,{"$f":"IFERROR(INDEX(MyFiles,ROW()),\"-----\")","v":"-----"}]
[null,{"$f":"IFERROR(INDEX(MyFiles,ROW()),\"-----\")","v":"-----"}]
[null,{"$f":"IFERROR(INDEX(MyFiles,ROW()),\"-----\")","v":"-----"}]
[null,{"$f":"IFERROR(INDEX(MyFiles,ROW()),\"-----\")","v":"-----"}]
[null,{"$f":"IFERROR(INDEX(MyFiles,ROW()),\"-----\")","v":"-----"}]
[null,{"$f":"IFERROR(INDEX(MyFiles,ROW()),\"-----\")","v":"-----"}]
[null,{"$f":"IFERROR(INDEX(MyFiles,ROW()),\"-----\")","v":"-----"}]
[null,{"$f":"IFERROR(INDEX(MyFiles,ROW()),\"-----\")","v":"-----"}]
[null,{"$f":"IFERROR(INDEX(MyFiles,ROW()),\"-----\")","v":"-----"}]
[null,{"$f":"IFERROR(INDEX(MyFiles,ROW()),\"-----\")","v":"-----"}]
[null,{"$f":"IFERROR(INDEX(MyFiles,ROW()),\"-----\")","v":"-----"}]
[null,{"$f":"IFERROR(INDEX(MyFiles,ROW()),\"-----\")","v":"-----"}]
[null,{"$f":"IFERROR(INDEX(MyFiles,ROW()),\"-----\")","v":"-----"}]
[null,{"$f":"IFERROR(INDEX(MyFiles,ROW()),\"-----\")","v":"-----"}]
[null,{"$f":"IFERROR(INDEX(MyFiles,ROW()),\"-----\")","v":"-----"}]
[null,{"$f":"IFERROR(INDEX(MyFiles,ROW()),\"-----\")","v":"-----"}]
[null,{"$f":"IFERROR(INDEX(MyFiles,ROW()),\"-----\")","v":"-----"}]
[null,{"$f":"IFERROR(INDEX(MyFiles,ROW()),\"-----\")","v":"-----"}]
[null,{"$f":"IFERROR(INDEX(MyFiles,ROW()),\"-----\")","v":"-----"}]
[null,{"$f":"IFERROR(INDEX(MyFiles,ROW()),\"-----\")","v":"-----"}]
[null,{"$f":"IFERROR(INDEX(MyFiles,ROW()),\"-----\")","v":"-----"}]
[null,{"$f":"IFERROR(INDEX(MyFiles,ROW()),\"-----\")","v":"-----"}]
[null,{"$f":"IFERROR(INDEX(MyFiles,ROW()),\"-----\")","v":"-----"}]
[null,{"$f":"IFERROR(INDEX(MyFiles,ROW()),\"-----\")","v":"-----"}]
[null,{"$f":"IFERROR(INDEX(MyFiles,ROW()),\"-----\")","v":"-----"}]
[null,{"$f":"IFERROR(INDEX(MyFiles,ROW()),\"-----\")","v":"-----"}]
[null,{"$f":"IFERROR(INDEX(MyFiles,ROW()),\"-----\")","v":"-----"}]
[null,{"$f":"IFERROR(INDEX(MyFiles,ROW()),\"-----\")","v":"-----"}]
[null,{"$f":"IFERROR(INDEX(MyFiles,ROW()),\"-----\")","v":"-----"}]
[null,{"$f":"IFERROR(INDEX(MyFiles,ROW()),\"-----\")","v":"-----"}]
[null,{"$f":"IFERROR(INDEX(MyFiles,ROW()),\"-----\")","v":"-----"}]
[null,{"$f":"IFERROR(INDEX(MyFiles,ROW()),\"-----\")","v":"-----"}]
[null,{"$f":"IFERROR(INDEX(MyFiles,ROW()),\"-----\")","v":"-----"}]
[null,{"$f":"IFERROR(INDEX(MyFiles,ROW()),\"-----\")","v":"-----"}]
[null,{"$f":"IFERROR(INDEX(MyFiles,ROW()),\"-----\")","v":"-----"}]
[null,{"$f":"IFERROR(INDEX(MyFiles,ROW()),\"-----\")","v":"-----"}]
[null,{"$f":"IFERROR(INDEX(MyFiles,ROW()),\"-----\")","v":"-----"}]
[null,{"$f":"IFERROR(INDEX(MyFiles,ROW()),\"-----\")","v":"-----"}]
[null,{"$f":"IFERROR(INDEX(MyFiles,ROW()),\"-----\")","v":"-----"}]
[null,{"$f":"IFERROR(INDEX(MyFiles,ROW()),\"-----\")","v":"-----"}]
[null,{"$f":"IFERROR(INDEX(MyFiles,ROW()),\"-----\")","v":"-----"}]
[null,{"$f":"IFERROR(INDEX(MyFiles,ROW()),\"-----\")","v":"-----"}]
[null,{"$f":"IFERROR(INDEX(MyFiles,ROW()),\"-----\")","v":"-----"}]
[null,{"$f":"IFERROR(INDEX(MyFiles,ROW()),\"-----\")","v":"-----"}]
[null,{"$f":"IFERROR(INDEX(MyFiles,ROW()),\"-----\")","v":"-----"}]